[Event "Hungarian Rapid-ch 2022"]
[Site "Ajka"]
[Date "2022.07.17"]
[Round "10.21"]
[White "Nemeth, Zalan"]
[Black "Kiss, Pal"]
[Result "1/2-1/2"]
[ECO "A11"]
[WhiteElo "2194"]
[BlackElo "2243"]
[Annotator "ChessBase"]
[PlyCount "70"]
[EventDate "2022.07.15"]
[EventType "swiss"]
[EventCountry "HUN"]
[SourceTitle "playchess.com"]
[Source "ChessBase"]
[SourceQuality "1"]
[TimeControl "900+10"]

1. c4 {[%emt 0:00:11]} c6 {[%emt 0:00:16]} 2. g3 {[%emt 0:00:05]} d5 {[%emt 0:00:02]} 3. Nf3 {[%emt 0:00:01]} Nf6 {[%emt 0:00:02]} 4. Bg2 {[%emt 0:00:02]} Bg4 {[%emt 0:00:06]} 5. Ne5 {[%emt 0:00:11]} Bh5 {[%emt 0:00:08]} 6. cxd5 {[%emt 0:00:20]} Nxd5 {[%emt 0:00:03]} 7. O-O {[%emt 0:00:18]} e6 {[%emt 0:00:21]} 8. Nc3 {[%emt 0:00:13]} Nd7 {[%emt 0:00:25]} 9. Nc4 {[%emt 0:01:21]} b5 {[%emt 0:01:15]} 10. Nxd5 {[%emt 0:00:25]} cxd5 {[%emt 0:00:18]} 11. Ne3 {[%emt 0:00:09]} Bc5 {[%emt 0:00:52]} 12. d4 {[%emt 0:00:03]} Bd6 {[%emt 0:01:50]} 13. Qd3 {[%emt 0:01:40]} a6 {[%emt 0:00:34]} 14. Bd2 {[%emt 0:00:03]} Bg6 {[%emt 0:01:46]} 15. Qc3 {[%emt 0:00:03]} Rc8 {[%emt 0:01:23]} 16. Qa5 {[%emt 0:00:07]} Qxa5 {[%emt 0:00:17]} 17. Bxa5 {[%emt 0:00:01]} Nb8 {[%emt 0:00:45]} 18. Rfd1 {[%emt 0:02:30]} Nc6 {[%emt 0:01:24]} 19. Be1 {[%emt 0:00:07]} Kd7 {[%emt 0:01:24]} 20. a3 {[%emt 0:00:59]} Ne7 {[%emt 0:00:15]} 21. Bh3 {[%emt 0:00:58]} Nf5 {[%emt 0:00:51]} 22. Bxf5 {[%emt 0:00:53]} Bxf5 {[%emt 0:00:03]} 23. Nxf5 {[%emt 0:00:45]} exf5 {[%emt 0:00:02]} 24. Rac1 {[%emt 0:00:59]} Rc4 {[%emt 0:00:45]} 25. Rxc4 {[%emt 0:00:48]} bxc4 {[%emt 0:00:03]} 26. Bc3 {[%emt 0:00:48]} Rb8 {[%emt 0:00:01]} 27. Kf1 {[%emt 0:00:30]} Rb3 {[%emt 0:00:13]} 28. Ra1 {[%emt 0:00:03]} Kc6 {[%emt 0:00:04]} 29. Ke1 {[%emt 0:00:04]} Kb5 {[%emt 0:00:15]} 30. Kd2 {[%emt 0:00:21]} Kc6 {[%emt 0:00:22]} 31. f3 {[%emt 0:00:38]} Rb7 {[%emt 0:00:02]} 32. Re1 {[%emt 0:00:06]} Re7 {[%emt 0:00:04]} 33. e3 {[%emt 0:00:48]} Re6 {[%emt 0:00:12]} 34. Re2 {[%emt 0:00:04]} Rh6 {[%emt 0:00:29]} 35. Rg2 {[%emt 0:00:20]} Rh3 1/2-1/2

[Event "Hungarian Rapid-ch 2022"]
[Site "Ajka"]
[Date "2022.07.17"]
[Round "10.22"]
[White "Kovacs, Klara"]
[Black "Gaal, Zsoka"]
[Result "1-0"]
[ECO "A46"]
[WhiteElo "2098"]
[BlackElo "2313"]
[Annotator "ChessBase"]
[PlyCount "71"]
[EventDate "2022.07.15"]
[EventType "swiss"]
[EventCountry "HUN"]
[SourceTitle "playchess.com"]
[Source "ChessBase"]
[SourceQuality "1"]
[TimeControl "900+10"]

1. d4 {[%emt 0:00:13]} Nf6 {[%emt 0:00:20]} 2. Nf3 {[%emt 0:00:03]} d5 {[%emt 0:00:01]} 3. g3 {[%emt 0:00:01]} g6 {[%emt 0:00:51]} 4. Bg2 {[%emt 0:00:03]} c6 {[%emt 0:00:02]} 5. O-O {[%emt 0:00:03]} Bg7 {[%emt 0:00:01]} 6. c4 {[%emt 0:00:02]} dxc4 {[%emt 0:00:37]} 7. Na3 {[%emt 0:00:42]} b5 {[%emt 0:00:41]} 8. Ne5 {[%emt 0:00:28]} Nd5 {[%emt 0:00:05]} 9. Bf4 {[%emt 0:02:40]} O-O {[%emt 0:00:30]} 10. Qd2 {[%emt 0:00:20]} Bb7 {[%emt 0:00:56]} 11. Rac1 {[%emt 0:00:30]} Nd7 {[%emt 0:01:33]} 12. Bxd5 {[%emt 0:00:25]} cxd5 {[%emt 0:00:27]} 13. Nxb5 {[%emt 0:00:02]} a6 {[%emt 0:00:31]} 14. Nc3 {[%emt 0:00:17]} Nxe5 {[%emt 0:01:17]} 15. dxe5 {[%emt 0:00:33]} d4 {[%emt 0:01:17]} 16. Na4 {[%emt 0:00:26]} Qd5 {[%emt 0:02:32]} 17. f3 {[%emt 0:01:31]} Qb5 {[%emt 0:00:23]} 18. b3 {[%emt 0:01:05]} cxb3 {[%emt 0:00:12]} 19. axb3 {[%emt 0:00:02]} Qxb3 {[%emt 0:00:09]} 20. Nc5 {[%emt 0:00:12]} Qd5 {[%emt 0:00:02]} 21. Nxb7 {[%emt 0:00:45]} Qxb7 {[%emt 0:00:01]} 22. Qxd4 {[%emt 0:00:02]} Rfd8 {[%emt 0:00:01]} 23. Qe3 {[%emt 0:00:09]} Rac8 {[%emt 0:01:31]} 24. Kg2 {[%emt 0:00:14]} a5 {[%emt 0:00:19]} 25. Ra1 {[%emt 0:00:54]} Qa6 {[%emt 0:00:07]} 26. Qe4 {[%emt 0:00:20]} Ra8 {[%emt 0:01:41]} 27. Ra4 {[%emt 0:00:06]} e6 {[%emt 0:00:42]} 28. h4 {[%emt 0:00:15]} Rd5 {[%emt 0:00:31]} 29. h5 {[%emt 0:00:17]} g5 {[%emt 0:00:26]} 30. h6 {[%emt 0:00:33]} gxf4 {[%emt 0:00:45]} 31. hxg7 {[%emt 0:00:04]} Rd2 {[%emt 0:00:01]} 32. Rf2 {[%emt 0:00:23]} fxg3 {[%emt 0:00:14]} 33. Kxg3 {[%emt 0:00:03]} Rad8 {[%emt 0:00:16]} 34. Rh2 {[%emt 0:01:02]} Kxg7 {[%emt 0:00:36]} 35. Rxh7+ {[%emt 0:00:50]} Kg8 {[%emt 0:00:22]} 36. Qh4 {[%emt 0:00:47]} 1-0

[Event "Hungarian Rapid-ch 2022"]
[Site "Ajka"]
[Date "2022.07.17"]
[Round "10.23"]
[White "Nemeth, Zoltan"]
[Black "Horvath, Kristof"]
[Result "1/2-1/2"]
[ECO "D30"]
[WhiteElo "2242"]
[BlackElo "2053"]
[Annotator "ChessBase"]
[PlyCount "94"]
[EventDate "2022.07.15"]
[EventType "swiss"]
[EventCountry "HUN"]
[SourceTitle "playchess.com"]
[Source "ChessBase"]
[SourceQuality "1"]
[TimeControl "900+10"]

1. d4 {[%emt 0:00:16]} d5 {[%emt 0:00:10]} 2. c4 {[%emt 0:00:12]} e6 {[%emt 0:00:01]} 3. Nf3 {[%emt 0:00:03]} c5 {[%emt 0:00:02]} 4. e3 {[%emt 0:00:02]} Nf6 {[%emt 0:00:09]} 5. a3 {[%emt 0:00:02]} Be7 {[%emt 0:00:17]} 6. dxc5 {[%emt 0:00:01]} Bxc5 7. b4 Be7 {[%emt 0:00:03]} 8. Bb2 {[%emt 0:00:03]} O-O {[%emt 0:00:18]} 9. Nbd2 {[%emt 0:00:14]} b6 {[%emt 0:00:04]} 10. Be2 {[%emt 0:00:51]} Bb7 {[%emt 0:00:03]} 11. O-O {[%emt 0:00:02]} Nbd7 {[%emt 0:00:55]} 12. Qb3 {[%emt 0:00:02]} dxc4 {[%emt 0:02:00]} 13. Bxc4 {[%emt 0:00:06]} Nd5 {[%emt 0:00:01]} 14. Rfd1 {[%emt 0:00:12]} Bf6 {[%emt 0:00:05]} 15. Rac1 {[%emt 0:00:15]} Rc8 {[%emt 0:00:22]} 16. Nd4 {[%emt 0:00:08]} Ne5 {[%emt 0:00:28]} 17. Bf1 {[%emt 0:00:18]} Ne7 {[%emt 0:04:18]} 18. Rxc8 {[%emt 0:00:56]} Qxc8 {[%emt 0:00:05]} 19. a4 {[%emt 0:01:23]} Qb8 {[%emt 0:02:02]} 20. h3 {[%emt 0:00:09]} Rc8 {[%emt 0:00:01]} 21. b5 {[%emt 0:01:49]} Bd5 {[%emt 0:03:07]} 22. Qb4 {[%emt 0:00:04]} N7g6 {[%emt 0:00:47]} 23. Rc1 {[%emt 0:00:54]} Be7 {[%emt 0:01:18]} 24. Rxc8+ {[%emt 0:00:02]} Qxc8 {[%emt 0:00:01]} 25. Qc3 {[%emt 0:00:01]} Qxc3 {[%emt 0:00:01]} 26. Bxc3 {[%emt 0:00:01]} Bf6 {[%emt 0:00:30]} 27. Bb4 {[%emt 0:01:09]} Be7 {[%emt 0:00:23]} 28. Bc3 {[%emt 0:00:18]} Bf6 {[%emt 0:00:01]} 29. g3 {[%emt 0:03:00]} Nd7 {[%emt 0:00:18]} 30. Bd3 {[%emt 0:00:55]} Nc5 {[%emt 0:00:12]} 31. Bc2 {[%emt 0:00:01]} Ne5 {[%emt 0:00:06]} 32. f4 {[%emt 0:00:19]} Nc4 {[%emt 0:00:20]} 33. Nxc4 {[%emt 0:00:24]} Bxc4 {[%emt 0:00:01]} 34. e4 {[%emt 0:00:38]} Bxd4+ {[%emt 0:01:28]} 35. Bxd4 {[%emt 0:00:01]} Bb3 {[%emt 0:00:28]} 36. Bxb3 {[%emt 0:00:25]} Nxb3 {[%emt 0:00:01]} 37. Be3 {[%emt 0:00:02]} Kf8 {[%emt 0:00:09]} 38. Kf1 {[%emt 0:00:02]} Ke7 {[%emt 0:00:07]} 39. Ke2 {[%emt 0:00:20]} Kd6 {[%emt 0:00:21]} 40. Kd3 {[%emt 0:03:17]} Nc5+ {[%emt 0:00:00]} 41. Kd4 {[%emt 0:00:00]} Nxa4 {[%emt 0:00:11]} 42. e5+ {[%emt 0:00:01]} Kd7 {[%emt 0:00:17]} 43. Kc4 {[%emt 0:00:01]} Nb2+ {[%emt 0:00:30]} 44. Kb3 {[%emt 0:00:42]} Nd3 {[%emt 0:00:02]} 45. Kc4 {[%emt 0:00:11]} Nb2+ {[%emt 0:00:03]} 46. Kb3 {[%emt 0:00:02]} Nd3 {[%emt 0:00:01]} 47. Kc4 {[%emt 0:00:01]} Nb2+ {[%emt 0:00:38]} 1/2-1/2

[Event "Hungarian Rapid-ch 2022"]
[Site "Ajka"]
[Date "2022.07.17"]
[Round "10.24"]
[White "Papp, Bence"]
[Black "Margl, Roland"]
[Result "0-1"]
[ECO "D35"]
[WhiteElo "2244"]
[BlackElo "2312"]
[Annotator "ChessBase"]
[PlyCount "134"]
[EventDate "2022.07.15"]
[EventType "swiss"]
[EventCountry "HUN"]
[SourceTitle "playchess.com"]
[Source "ChessBase"]
[SourceQuality "1"]
[TimeControl "900+10"]

1. d4 {[%emt 0:00:13]} d5 {[%emt 0:00:15]} 2. c4 {[%emt 0:00:03]} e6 {[%emt 0:00:06]} 3. Nc3 {[%emt 0:00:10]} Nf6 {[%emt 0:00:04]} 4. cxd5 {[%emt 0:00:05]} exd5 {[%emt 0:00:05]} 5. Bg5 {[%emt 0:00:03]} c6 {[%emt 0:00:02]} 6. e3 {[%emt 0:00:04]} h6 {[%emt 0:00:06]} 7. Bh4 {[%emt 0:00:06]} Be7 {[%emt 0:00:02]} 8. Bd3 {[%emt 0:00:03]} O-O {[%emt 0:00:04]} 9. Qc2 {[%emt 0:00:01]} Nh5 {[%emt 0:00:19]} 10. Bxe7 {[%emt 0:00:11]} Qxe7 {[%emt 0:00:02]} 11. Nge2 {[%emt 0:00:02]} Re8 {[%emt 0:00:12]} 12. O-O-O {[%emt 0:00:40]} b5 {[%emt 0:00:06]} 13. Rhg1 {[%emt 0:00:05]} Nf6 {[%emt 0:00:18]} 14. Ng3 {[%emt 0:01:18]} a5 {[%emt 0:02:41]} 15. Rge1 {[%emt 0:00:29]} Na6 {[%emt 0:00:15]} 16. Bf5 {[%emt 0:01:15]} Bxf5 {[%emt 0:03:00]} 17. Nxf5 {[%emt 0:00:02]} Qd7 {[%emt 0:00:02]} 18. g4 {[%emt 0:00:27]} c5 {[%emt 0:02:14]} 19. dxc5 {[%emt 0:00:24]} Nxc5 {[%emt 0:00:08]} 20. Kb1 {[%emt 0:00:00]} Rac8 {[%emt 0:00:43]} 21. Qd2 {[%emt 0:00:37]} Rcd8 {[%emt 0:04:28]} 22. Qd4 {[%emt 0:02:38]} Nce4 {[%emt 0:00:59]} 23. f3 {[%emt 0:00:03]} Nxc3+ {[%emt 0:00:07]} 24. Qxc3 {[%emt 0:00:01]} Re6 {[%emt 0:01:40]} 25. Qxa5 {[%emt 0:00:25]} Rb8 {[%emt 0:00:02]} 26. Qb4 {[%emt 0:00:40]} Ra6 {[%emt 0:00:09]} 27. h4 {[%emt 0:00:44]} Rba8 {[%emt 0:00:17]} 28. a3 {[%emt 0:00:14]} Ra4 {[%emt 0:00:01]} 29. Qe7 {[%emt 0:01:15]} b4 {[%emt 0:00:08]} 30. Qxd7 {[%emt 0:00:15]} Nxd7 {[%emt 0:00:01]} 31. axb4 {[%emt 0:00:08]} Nb6 {[%emt 0:00:14]} 32. Ne7+ {[%emt 0:00:23]} Kf8 {[%emt 0:00:07]} 33. Nxd5 {[%emt 0:00:04]} Nxd5 {[%emt 0:00:03]} 34. Kc2 {[%emt 0:00:41]} Nxb4+ {[%emt 0:00:13]} 35. Kb3 {[%emt 0:00:01]} Nc6 {[%emt 0:00:03]} 36. Rd6 {[%emt 0:00:09]} R4a6 {[%emt 0:00:07]} 37. Red1 {[%emt 0:00:14]} Ne5 {[%emt 0:00:44]} 38. Rxa6 {[%emt 0:00:33]} Rxa6 {[%emt 0:00:01]} 39. Rd8+ {[%emt 0:00:24]} Ke7 {[%emt 0:00:01]} 40. Rg8 {[%emt 0:00:01]} g6 {[%emt 0:00:12]} 41. Rh8 {[%emt 0:00:04]} Nxf3 {[%emt 0:00:13]} 42. Rxh6 {[%emt 0:00:02]} Re6 {[%emt 0:00:04]} 43. h5 {[%emt 0:00:14]} Rxe3+ {[%emt 0:00:09]} 44. Kc2 {[%emt 0:00:09]} Kf6 {[%emt 0:00:09]} 45. hxg6 {[%emt 0:00:13]} fxg6 {[%emt 0:00:04]} 46. Rh8 {[%emt 0:00:26]} Nd4+ {[%emt 0:00:06]} 47. Kd2 {[%emt 0:00:16]} Rb3 {[%emt 0:00:28]} 48. Rd8 {[%emt 0:00:02]} Ke5 {[%emt 0:00:04]} 49. Kc1 {[%emt 0:00:37]} Rg3 {[%emt 0:00:06]} 50. b4 {[%emt 0:00:16]} Rxg4 {[%emt 0:00:25]} 51. Rb8 {[%emt 0:00:06]} Nc6 {[%emt 0:00:16]} 52. Re8+ {[%emt 0:00:06]} Kf6 {[%emt 0:00:56]} 53. b5 {[%emt 0:00:02]} Rc4+ {[%emt 0:00:12]} 54. Kd2 {[%emt 0:00:07]} Ne5 {[%emt 0:00:04]} 55. Rb8 {[%emt 0:00:27]} Kg7 {[%emt 0:00:30]} 56. Ke3 {[%emt 0:00:16]} Rb4 {[%emt 0:00:06]} 57. Kd2 {[%emt 0:00:09]} Rc4 {[%emt 0:00:12]} 58. Ke3 {[%emt 0:00:02]} g5 {[%emt 0:00:00]} 59. Re8 {[%emt 0:00:48]} Nf7 {[%emt 0:00:05]} 60. Kd3 {[%emt 0:00:14]} Rb4 {[%emt 0:00:04]} 61. Rb8 {[%emt 0:00:02]} Nd6 {[%emt 0:00:08]} 62. b6 {[%emt 0:00:01]} Kf6 {[%emt 0:00:05]} 63. Kc3 {[%emt 0:00:04]} Rb5 {[%emt 0:00:09]} 64. Kd4 {[%emt 0:00:01]} Kf5 {[%emt 0:00:05]} 65. Rf8+ {[%emt 0:00:32]} Kg4 {[%emt 0:00:02]} 66. Rb8 {[%emt 0:00:09]} Kg3 {[%emt 0:00:06]} 67. Ke3 {[%emt 0:00:46]} Rxb6 {[%emt 0:00:07]} 0-1

[Event "Hungarian Rapid-ch 2022"]
[Site "Ajka"]
[Date "2022.07.17"]
[Round "10.25"]
[White "Kelemen, David"]
[Black "Balint, Vilmos"]
[Result "0-1"]
[ECO "B28"]
[WhiteElo "2136"]
[BlackElo "2283"]
[Annotator "ChessBase"]
[PlyCount "66"]
[EventDate "2022.07.15"]
[EventType "swiss"]
[EventCountry "HUN"]
[SourceTitle "playchess.com"]
[Source "ChessBase"]
[SourceQuality "1"]
[TimeControl "900+10"]

1. e4 {[%emt 0:00:11]} c5 {[%emt 0:00:24]} 2. Nf3 {[%emt 0:00:03]} a6 {[%emt 0:00:01]} 3. c4 {[%emt 0:00:24]} Nc6 {[%emt 0:00:34]} 4. Be2 {[%emt 0:00:17]} e5 {[%emt 0:00:05]} 5. Nc3 {[%emt 0:00:07]} d6 {[%emt 0:00:08]} 6. d3 {[%emt 0:00:13]} g6 {[%emt 0:00:12]} 7. Nd5 {[%emt 0:00:12]} b5 {[%emt 0:00:43]} 8. cxb5 {[%emt 0:01:04]} axb5 {[%emt 0:00:04]} 9. O-O {[%emt 0:00:16]} Rb8 {[%emt 0:01:34]} 10. Be3 {[%emt 0:02:31]} Bg7 {[%emt 0:00:09]} 11. b4 {[%emt 0:01:31]} Nd4 {[%emt 0:00:43]} 12. Bxd4 {[%emt 0:01:59]} cxd4 {[%emt 0:02:06]} 13. a4 {[%emt 0:01:33]} Ne7 {[%emt 0:00:19]} 14. Nd2 {[%emt 0:03:00]} Nxd5 {[%emt 0:00:25]} 15. exd5 {[%emt 0:00:02]} O-O {[%emt 0:00:20]} 16. a5 {[%emt 0:01:38]} f5 {[%emt 0:00:27]} 17. Rc1 {[%emt 0:00:04]} Bb7 {[%emt 0:00:06]} 18. Bf3 {[%emt 0:00:42]} Bh6 {[%emt 0:00:26]} 19. Rc2 {[%emt 0:00:51]} Rc8 {[%emt 0:00:16]} 20. Qb1 {[%emt 0:00:54]} Rxc2 {[%emt 0:03:02]} 21. Qxc2 {[%emt 0:00:01]} Qc8 {[%emt 0:00:01]} 22. Rc1 {[%emt 0:01:03]} Qc3 {[%emt 0:00:02]} 23. Nb1 {[%emt 0:00:11]} Qxb4 {[%emt 0:00:12]} 24. Rd1 {[%emt 0:00:01]} Rc8 {[%emt 0:00:04]} 25. Qa2 {[%emt 0:00:01]} Ra8 {[%emt 0:01:08]} 26. Qc2 {[%emt 0:00:15]} Qxa5 {[%emt 0:00:09]} 27. Nd2 {[%emt 0:00:05]} Qc3 {[%emt 0:00:28]} 28. Qb1 {[%emt 0:00:17]} Bxd2 {[%emt 0:02:51]} 29. Qxb5 {[%emt 0:00:02]} Qb4 {[%emt 0:00:00]} 30. Qd7 {[%emt 0:00:04]} Bg5 {[%emt 0:00:02]} 31. Qe6+ {[%emt 0:00:18]} Kg7 {[%emt 0:00:01]} 32. g3 {[%emt 0:00:02]} Rf8 {[%emt 0:00:54]} 33. h4 {[%emt 0:00:03]} Bc8 {[%emt 0:00:18]} 0-1

[Event "Hungarian Rapid-ch 2022"]
[Site "Ajka"]
[Date "2022.07.17"]
[Round "10.27"]
[White "Boguszlavszkij, Jevgenyij"]
[Black "Szalanczi, Emil"]
[Result "1/2-1/2"]
[ECO "B50"]
[WhiteElo "1914"]
[BlackElo "2042"]
[Annotator "TA"]
[PlyCount "179"]
[EventDate "2022.07.15"]
[EventType "swiss"]
[EventCountry "HUN"]
[SourceTitle "playchess.com"]
[Source "ChessBase"]
[SourceQuality "1"]
[TimeControl "900+10"]

{[%evp 18,179,30,21,34,39,41,42,54,35,82,72,71,59,101,79,100,74,156,124,141,141,176,190,189,194,226,215,237,191,319,325,363,237,247,215,379,228,237,191,240,230,243,242,253,225,235,179,167,164,238,245,245,233,453,453,452,443,435,270,547,545,514,458,786,778,868,860,1634,390,329,199,199,91,89,87,106,106,106,32,106,31,24,24,38,32,71,38,50,32,32,32,32,27,71,12,19,10,34,8,10,8,16,16,17,15,32,10,10,8,8,8,8,0,0,0,0,0,0,1,8,8,8,0,0,0,0,0,0,0,0,0,0,0,0,0,8,0,8,8,8,8,14,14,14,10,14,14,14,0,8,0,14,8,8,0,14,0,8,0,14,0,8,0]} 1. e4 {[%emt 0:00:12]} c5 {[%emt 0:00:11]} 2. Nf3 {[%emt 0:00:02]} d6 {[%emt 0:00:01]} 3. g3 {[%emt 0:00:11]} Nc6 {[%emt 0:00:07]} 4. Bg2 {[%emt 0:00:02]} g6 {[%emt 0:00:07]} 5. d4 {[%emt 0:00:03]} cxd4 {[%emt 0:00:36]} 6. Nxd4 {[%emt 0:00:01]} Bg7 {[%emt 0:00:02]} 7. Ne2 {[%emt 0:00:11]} Nf6 {[%emt 0:00:16]} 8. O-O {[%emt 0:00:10]} O-O {[%emt 0:00:04]} 9. Nbc3 {[%emt 0:00:04]} Bg4 {[%emt 0:00:18]} 10. h3 {[%emt 0:00:08]} Bd7 {[%emt 0:00:02] The main line 10...Bd7 scores better than 10...Bxe2. B70: Sicilian Dragon: 6 g3 and 6 Be2 (without a later Be3).} 11. Nd5 {[%emt 0:00:31]} Nxd5 {[%emt 0:01:22]} 12. exd5 {[%emt 0:00:02]} Ne5 {[%emt 0:00:12] White is slightly better.} 13. a4 {[%emt 0:00:17]} Rc8 {[%emt 0:00:20]} (13... Qc8 $14 {feels stronger.}) 14. Ra2 $1 $16 {[%emt 0:00:12]} Be8 {[%emt 0:02:23]} 15. b3 {[%emt 0:00:24] [#]} a6 $146 {[%emt 0:01:00]} ({Predecessor:} 15... Qc7 16. Be3 Nd7 17. a5 Nc5 18. Bd4 Bxd4 19. Nxd4 Na6 20. c4 Nb4 21. Ra1 Qc5 {½-½ (57) Vesselovsky,S (2360)-Matuszewski,M (2384) Ostrava 2011}) 16. a5 {[%emt 0:02:07]} Nd7 {[%emt 0:00:33]} 17. c4 {[%emt 0:00:32]} Nf6 {[%emt 0:00:19]} (17... Nc5 $142) 18. Re1 {[%emt 0:00:18]} Bd7 {[%emt 0:00:12]} 19. Be3 {[%emt 0:00:55]} Qc7 {[%emt 0:00:40]} 20. Bb6 $1 {[%emt 0:00:16]} Qb8 {[%emt 0:00:01]} 21. Nd4 {[%emt 0:00:42]} Rfe8 {[%emt 0:00:29]} 22. Rae2 {[%emt 0:00:06] Inhibits e6.} Kf8 {[%emt 0:00:48]} 23. Qd2 {[%emt 0:01:36]} Ng8 {[%emt 0:01:57]} (23... Kg8 {keeps fighting.} 24. g4 (24. Rxe7 Rxe7 25. Rxe7 Re8 $16) 24... h6) 24. g4 $18 {[%emt 0:00:49]} Nf6 {[%emt 0:01:15]} 25. Qf4 {[%emt 0:00:37]} h6 {[%emt 0:00:32]} 26. Bf3 {[%emt 0:00:20] Hoping for h4.} Rc7 $2 {[%emt 0:02:29]} (26... Kg8 27. Rxe7 Rxe7 28. Rxe7 Re8 29. Rxe8+ Bxe8) 27. Bxc7 {[%emt 0:00:22]} Qxc7 {[%emt 0:00:02]} 28. Qd2 {[%emt 0:00:06]} Bc8 {[%emt 0:00:31]} (28... Nh7 {might work better.} 29. Bg2 Qc5) 29. Rc1 {[%emt 0:00:29]} Nd7 {[%emt 0:00:11]} 30. b4 {[%emt 0:00:10] Inhibits Qc5.} Ne5 {[%emt 0:00:29]} 31. Bg2 {[%emt 0:00:44]} g5 {[%emt 0:00:34]} 32. Kh1 {[%emt 0:00:39]} Ng6 {[%emt 0:00:19]} 33. Re3 {[%emt 0:00:37]} b6 {[%emt 0:00:28]} (33... Nf4 $142 34. Ne2 Be5) 34. axb6 {[%emt 0:00:33]} Qxb6 {[%emt 0:00:02]} 35. c5 {[%emt 0:00:14]} dxc5 {[%emt 0:00:10]} (35... Qc7 36. Ne2 Be5) 36. bxc5 {[%emt 0:00:02][%cal Bb4c5,Bc5c6][%mdl 32]} Qf6 {[%emt 0:00:04]} 37. Nc6 {[%emt 0:00:32][%cal Bd4c6,Bc6a5,Ba5c4][%mdl 32]} Bd7 {[%emt 0:00:27]} 38. Na5 {[%emt 0:00:50]} Nf4 $2 {[%emt 0:00:46]} (38... Bb5 39. d6 Qf4) 39. c6 {[%emt 0:00:16]} Bc8 {[%emt 0:00:09]} 40. Rce1 {[%emt 0:00:40]} Qd6 {[%emt 0:00:11]} (40... Qd4 $142 41. Rd1 Nxg2) 41. Nc4 {[%emt 0:00:34]} Qc5 {[%emt 0:00:07] [#]} 42. d6 $1 {[%emt 0:00:50][%cal Re3e7]} Nxg2 {[%emt 0:00:27]} (42... Ne6 43. Rc1) 43. dxe7+ $2 {[%emt 0:01:39]} (43. Kxg2 Qxc6+ 44. f3 (44. Re4 Be6 $16) 44... Qxc4 $16) (43. Rxe7 {[%csl Ge1][%cal Re7e8]} Bf6 44. Rxe8+ Kg7 45. d7 Bxd7 46. Qxd7) 43... Kg8 {[%emt 0:00:14]} 44. Kxg2 {[%emt 0:00:49] Dancing on a razor blade.} Qxc6+ {[%emt 0:00:10] [#]} 45. Re4 {[%emt 0:00:01]} (45. f3 $1 $18 {is more deadly. Threatens to win with Nd6.} Qxc4 46. Rd3) 45... Be6 $16 {[%emt 0:00:38]} 46. Qd6 {[%emt 0:00:49]} Qxd6 {[%emt 0:00:11][%mdl 64] Remove Defender} 47. Nxd6 {[%emt 0:00:01]} Rxe7 {[%emt 0:00:01] Strongly threatening ...Bd5.} 48. f3 {[%emt 0:00:09] White is more active.} (48. Nf5 $16 Ra7 49. Nxg7 Kxg7 50. Ra4) 48... Rc7 {[%emt 0:00:15] [#]} (48... Rd7 $14 49. Nf5 Bxf5 50. Re8+ (50. gxf5 Rd5 $14) 50... Kh7 51. gxf5 Rd5) 49. Nf5 {[%emt 0:00:08]} ({Better is} 49. Ne8 $1 $16 {[%cal Re8c7]} Rc2+ 50. R4e2) 49... Bxf5 $14 {[%emt 0:00:09]} 50. gxf5 {[%emt 0:00:01][%mdl 4096] Endgame KRR-KRB} Bf6 {[%emt 0:00:02]} 51. Ra4 {[%emt 0:00:03]} Rc6 {[%emt 0:00:01]} 52. Re8+ {[%emt 0:00:02]} Kg7 {[%emt 0:00:01]} 53. Ra8 {[%emt 0:00:00]} Rc2+ {[%emt 0:00:05]} 54. Kf1 {[%emt 0:00:03]} Rc1+ {[%emt 0:00:22]} 55. Ke2 {[%emt 0:00:02]} Rh1 {[%emt 0:00:08]} 56. R4xa6 {[%emt 0:00:10]} (56. Ra7 $16) 56... Rxh3 $11 {[%emt 0:00:04]} 57. Rc8 {[%emt 0:00:05] With the idea Rcc6.} Rh4 {[%emt 0:00:14]} 58. Raa8 {[%emt 0:00:01]} Be5 {[%emt 0:00:04]} 59. Re8 {[%emt 0:00:07]} Bf4 {[%emt 0:00:18]} 60. Ra7 {[%emt 0:00:22] Ree7 is the strong threat.} Kf6 {[%emt 0:00:18]} 61. Rf8 {[%emt 0:00:04]} Kxf5 {[%emt 0:00:08]} 62. Rfxf7+ {[%emt 0:00:06]} Kg6 {[%emt 0:00:23] The position is equal.} 63. Rg7+ {[%emt 0:00:03]} Kh5 {[%emt 0:00:03]} 64. Ra6 {[%emt 0:00:07]} Rh2+ {[%emt 0:00:07]} 65. Kd3 {[%emt 0:00:02]} Rf2 {[%emt 0:00:13]} 66. Ke4 {[%emt 0:00:01]} Re2+ {[%emt 0:00:04]} 67. Kd5 {[%emt 0:00:41]} Re5+ {[%emt 0:00:14]} 68. Kd4 {[%emt 0:00:14]} Re8 {[%emt 0:00:09] And now ...Be5+ would win.} 69. Rh7 {[%emt 0:00:09][%csl Ga6][%cal Rh7h6]} Kh4 {[%emt 0:00:08]} 70. Raxh6+ {[%emt 0:00:03]} Kg3 {[%emt 0:00:01]} 71. Rh3+ {[%emt 0:00:01]} Kg2 {[%emt 0:00:05]} 72. Rh1 {[%emt 0:00:39]} Kxf3 {[%emt 0:00:12]} 73. Rf1+ {[%emt 0:00:04]} Kg4 {[%emt 0:00:13]} 74. Rhh1 {[%emt 0:00:06]} Rd8+ {[%emt 0:00:07]} 75. Ke4 {[%emt 0:00:10]} Re8+ {[%emt 0:00:03]} 76. Kd4 {[%emt 0:00:02]} Kf5 {[%emt 0:00:06]} 77. Rh7 {[%emt 0:00:11]} Rd8+ {[%emt 0:00:02]} 78. Kc4 {[%emt 0:00:04]} Rd6 {[%emt 0:00:09]} 79. Rf7+ {[%emt 0:00:05]} Kg4 {[%emt 0:00:03]} 80. Rg1+ {[%emt 0:00:14]} Kh5 {[%emt 0:00:24]} 81. Rf5 {[%emt 0:00:21]} Rd7 {[%emt 0:00:13]} ({Don't take} 81... Bh2 82. Rg2 (82. Rfxg5+ Kh4 $14) 82... Kg6 83. Rc5 $14 (83. Rfxg5+ Kf6 $14)) 82. Rd5 {[%emt 0:00:02]} Re7 {[%emt 0:00:12]} 83. Rf1 {[%emt 0:00:11] Black must now prevent Rxf4.} Kg4 {[%emt 0:00:09]} 84. Rg1+ {[%emt 0:00:06]} Kh5 {[%emt 0:00:27]} 85. Rh1+ {[%emt 0:00:04]} Kg4 {[%emt 0:00:06]} 86. Rg1+ {[%emt 0:00:01]} Kh5 {[%emt 0:00:01]} 87. Rh1+ {[%emt 0:00:00]} Kg4 {[%emt 0:00:12]} 88. Rg1+ {[%emt 0:00:04]} Kh5 {[%emt 0:00:25]} 89. Rh1+ {[%emt 0:00:00]} Kg4 {[%emt 0:00:02]} 90. Rg1+ {Blacks defense is rewarded with a draw.  Weighted Error Value: White=0.40/Black=0.34} 1/2-1/2